Cogmind - Beta 16 @@@ ROGUE MODE // 2025.11.30 @ 17:16:07 Player: muurn Result: Destroyed by G-47 Trooper with Particle Gun Performance ------------- Evolutions (0) 0 Regions Visited (1) 200 Robots Destroyed (7) 35 Value Destroyed (133) 133 Prototype IDs (0) 0 Alien Tech Used (0) 0 Bonus (0) 0 TOTAL SCORE: 368 Bonus ------- None Cogmind --------- Core Integrity 0/250 Matter 241/300 Energy 65/100 System Corruption 0% Temperature Warning (351) Movement Core (200) Ox3 Location -10/Materials Parts ------- > --- POWER (1) -------- (None) > --- PROPULSION (2) --- (None) > --- UTILITY (2) ------ Small Storage Unit Seismic Detector > --- WEAPON (2) ------- Heavy Assault Rifle Heavy Assault Rifle > --- INVENTORY (8) ---- Light Ion Engine Small Battery (100) High-capacity Matter Pod (0) Targeting Computer Core Shielding Spread Laser Grenade Launcher Peak State ------------ > --- POWER ------------ Light Ion Engine > --- PROPULSION ------- Light Treads Light Treads > --- UTILITY ---------- Small Storage Unit Seismic Detector > --- WEAPON ----------- Spread Laser Spread Laser > --- INVENTORY -------- Light Ion Engine Small Battery High-capacity Matter Pod Core Shielding Assault Rifle Heavy Assault Rifle Heavy Assault Rifle Grenade Launcher [Rating: 10] Favorites ----------- Power Light Ion Engine Engine Light Ion Engine Propulsion Light Treads Treads Light Treads Utility Small Storage Unit Device Seismic Detector Storage Small Storage Unit Weapon Spread Laser Energy Gun Spread Laser Ballistic Gun Heavy Assault Rifle Build | -11 -10 ------- Run | Yrd Mat Slots Evolved . | . . Power . | . . Propulsion . | . . Utility . | . . Weapon . | . . Parts Attached 12 | 6 6 Power 2 | 1 1 Engine 2 | 1 1 Core . | . . Reactor . | . . Propulsion 2 | 2 . Treads 2 | 2 . Leg . | . . Wheel . | . . Hover . | . . Flight . | . . Utility 2 | 1 1 Device 1 | . 1 Storage 1 | 1 . Processor . | . . Hackware . | . . Protection . | . . Artifact . | . . Weapon 6 | 2 4 Energy Gun 4 | 2 2 Energy Cannon . | . . Ballistic Gun 2 | . 2 Ballistic Cannon . | . . Launcher . | . . Special Weapon . | . . Impact Weapon . | . . Slashing Weapon . | . . Piercing Weapon . | . . Special Melee Weapon . | . . Unidentified Prototypes . | . . Parts Lost 2 | . 2 Power 1 | . 1 Propulsion 1 | . 1 Utility . | . . Weapon . | . . Highest Loss Streak 2 | . 2 To Critical Strikes . | . . Average Backups 5 | 2 6 Power . | . 1 Propulsion . | . . Utility 2 | . 2 Weapon 2 | . 2 Tool/Special . | . . Unused Backups 6 | . 6 Power . | . . Propulsion . | . . Utility 4 | . 4 Weapon 2 | . 2 Tool/Special . | . . Average Slot Usage (%) 86 | . 86 Engine 13 | . 13 Treads 23 | . 23 Device 9 | . 9 Storage 14 | . 14 Energy Gun 23 | . 23 Peak Build Rating 10 | 6 10 Average Rating 7 | 3 7 On Entrance 3 | . 6 Avg Prop Armor Cover (%) 14 | . 14 Naked Turns . | . . Heaviest Build 15 | 12 15 Greatest Support 40 | 40 40 Greatest Overweight (x) 3 | . 3 Average Overweight (x) . | . . Largest Inventory Capacity 8 | 8 8 Average Capacity 7 | 6 8 Most Carried 8 | 5 8 Average Carried 5 | 2 6 Final Capacity 8 | 8 8 Final Carried 7 | 2 7 Class Distribution -------------------- 100% | Mutant Dominant Class ---------------- Mutant | -10/Materials Resources | -11 -10 ----------- Run | Yrd Mat Matter Collected 327 | 173 154 Remotely . | . . Salvage Created 160 | . 160 Parts 11 | . 11 Haulers Intercepted . | . . Recyclers Shooed . | . . Parts Field Recycled . | . . Retrieved Matter . | . . Parts Self-Destructed . | . . Prevented . | . . Parts Restored . | . . Kills | -11 -10 ------- Run | Yrd Mat Combat Hostiles Destroyed 6 | . 6 Guns 6 | . 6 Classes Destroyed 3 | . 3 Worker 1 | . 1 Swarmer 3 | . 3 Grunt 3 | . 3 Best Kill Streak 3 | . 3 Combat Bots Only 3 | . 3 Max Kills in Single Turn 1 | . 1 Gunslinging . | . . Exploded . | . . Melee . | . . Uniques/NPCs Destroyed . | . . Combat | -11 -10 -------- Run | Yrd Mat Hostile Shots Fired 56 | . 56 Missed 9 | . 9 Hits 47 | . 47 Projectile 47 | . 47 Critical Strikes 2 | . 2 Damage Taken 656 | . 656 Core 258 | . 258 Absorbed by Shields . | . . Core Remaining (%) 100 | 100 . Volleys Fired 24 | . 24 Largest 2 | . 2 Hottest 130 | . 130 Shots Fired 43 | . 43 Gun 43 | . 43 Cannon . | . . Launcher . | . . Special . | . . Kinetic 2 | . 2 Thermal 32 | . 32 Explosive . | . . Electromagnetic 9 | . 9 Robot Hit Streak 7 | . 7 Robot Miss Streak 12 | . 12 Penetration Max . | . . Secondary Targets 2 | . 2 Max Gunslinging Chain 1 | . 1 Shots Hit Robots 32 | . 32 Core Hits 17 | . 17 Critical Kills . | . . Critical Parts Destroyed . | . . Critical Strikes . | . . Melee Attacks . | . . Impact . | . . Slashing . | . . Piercing . | . . Sneak Attacks . | . . Combat Hostiles . | . . Follow-up Attacks . | . . Damage Inflicted 325 | . 325 Guns 325 | . 325 Cannons . | . . Explosions . | . . Melee . | . . Ramming . | . . Kinetic 17 | . 17 Thermal 220 | . 220 Explosive . | . . Electromagnetic 88 | . 88 Impact . | . . Slashing . | . . Piercing . | . . Highest Corruption . | . . Average Corruption . | . . Corruption Purged . | . . Corruption Blocked . | . . Overload Shots . | . . Overflow Damage . | . . Projectiles . | . . Explosions . | . . Melee . | . . Knockbacks . | . . Impact . | . . Kinetic . | . . Secondary . | . . Self-Inflicted Damage . | . . Shots . | . . Rammed . | . . Targets Rammed . | . . Kicked . | . . Crushed . | . . Highest Temperature 646 | . 646 Average Temperature 285 | . 285 Received Heat Transfer 246 | . 246 Effects 21 | . 21 Shutdowns 3 | . 3 Energy Bleed 2 | . 2 Interference 5 | . 5 Short Circuit 2 | . 2 Damage (minor) 2 | . 2 Damage (major) 4 | . 4 Damage (core) 3 | . 3 Siege Activations . | . . Martial Activations . | . . Shielding Activations . | . . Robots Disrupted . | . . Combat Hostiles . | . . Robots Corrupted . | . . Combat Hostiles . | . . Parts Fried . | . . Impact Corruptions . | . . Robots Melted . | . . Combat Hostiles . | . . Parts Melted . | . . Heat Transferred 397 | . 397 Parts Sabotaged . | . . Parts Stolen . | . . Parts Stripped . | . . Power Chain Reactions . | . . Alert | -11 -10 ------- Run | Yrd Mat Maximum Alert Level . | . . Low Security (%) 100 | 100 100 Level 1 . | . . Level 2 . | . . Level 3 . | . . Level 4 . | . . Level 5 . | . . High Security . | . . Max Security . | . . Peak Influence 104 | . 104 Initial . | . . Average 10 | . 12 Influence Increases 175 | . 175 Destroy 0b10 Robot/C 120 | . 120 Destroy 0b10 Robot/NC 5 | . 5 Destroy Leader 20 | . 20 Lose Combat Pursuer 30 | . 30 Influence Decreases 94 | . 94 Time Decay 74 | . 74 Lost Part 20 | . 20 Squads Dispatched 1 | . 1 Investigation . | . . Extermination . | . . Reinforcement 1 | . 1 Assault . | . . Garrison . | . . Intercept . | . . Searches Triggered . | . . Construction Impeded . | . . Haulers Reinforced . | . . Active Scanning Responses . | . . Cargo Convoy Interrupts . | . . Stealth | -11 -10 --------- Run | Yrd Mat Distress Signals . | . . Communications Jammed . | . . Distress Signals . | . . Times Spotted 10 | . 10 Peak Tracking Total 6 | . 6 Tactical Retreats 1 | . 1 Traps | -11 -10 ------- Run | Yrd Mat Traps Triggered 4 | . 4 Indirectly . | . . Trap Hack Attempts . | . . Triggered . | . . Disarmed 5 | . 5 Reprogrammed . | . . Reused . | . . Traps Extracted . | . . Installed . | . . Triggered . | . . Machines | -11 -10 ---------- Run | Yrd Mat Machines Disabled . | . . Max in Single Turn . | . . Machines Repaired . | . . Machines Dismantled . | . . Machines Sabotaged . | . . Overloaded Fab Kills . | . . Hacking | -11 -10 --------- Run | Yrd Mat Machines Accessed 1 | . 1 Terminals 1 | . 1 Fabricators . | . . Repair Stations . | . . Recycling Units . | . . Scanalyzers . | . . Garrison Access . | . . Total Hacks 4 | . 4 Successful 2 | . 2 Failed 2 | . 2 Catastrophic . | . . Database Lockouts . | . . Manual . | . . Terminals 4 | . 4 Fabricators . | . . Repair Stations . | . . Recycling Units . | . . Scanalyzers . | . . Garrison Access . | . . Terminal Hacks 2 | . 2 Locate Traps 1 | . 1 Disarm Traps 1 | . 1 Fabricator Hacks . | . . Repair Station Hacks . | . . Recycling Unit Hacks . | . . Scanalyzer . | . . Garrison Access Hacks . | . . Unauthorized Hacks . | . . Terminals . | . . Fabricators . | . . Repair Stations . | . . Recycling Units . | . . Scanalyzers . | . . Garrison Access . | . . Data Cores Recovered . | . . Used . | . . Hacking Detections 1 | . 1 Full Trace Events . | . . Feedback Events . | . . Feedback Blocked . | . . Robot Schematics Acquired . | . . Robots Built . | . . Authchips . | . . Time . | . . Total Robot Build Rating . | . . Part Schematics Acquired . | . . Parts Built . | . . Authchips . | . . Time . | . . Total Part Build Rating . | . . Part Studies Acquired . | . . Parts Repaired . | . . Time . | . . Parts Recycled . | . . Recycled Matter . | . . Retrieved Matter . | . . Retrieved Components . | . . Parts Scanalyzed . | . . Part Schematics Acquired . | . . Parts Damaged . | . . Bothacking | -11 -10 ------------ Run | Yrd Mat Used RIF Installer . | . . Robots Hacked . | . . Non-combat . | . . Combat . | . . Robot Hacks Applied . | . . Relay Couplers Released . | . . Fabnet Peak Effective % . | . . Robots Rewired . | . . Allies Hacked . | . . Hacks Repelled . | . . Allies | -11 -10 -------- Run | Yrd Mat Total Allies . | . . Largest Group . | . . Highest-Rated Group . | . . Highest-Rated Ally . | . . Total Orders . | . . Ally Attacks . | . . Total Damage . | . . Kills . | . . Allies Corrupted . | . . Allies Melted . | . . Intel | -11 -10 ------- Run | Yrd Mat Active Infowar (turns) 283 | . 283 Seismic 283 | . 283 Robot Analysis Total . | . . Derelict Logs Recovered . | . . Drone Launches . | . . Drone Recoveries . | . . Exploration | -11 -10 ------------- Run | Yrd Mat Turns Passed 505 | 53 452 Spaces Moved 258 | 41 217 Core 52 | 22 30 Treads 206 | 19 187 Legs . | . . Wheels . | . . Hover . | . . Flight . | . . Fastest Speed 50 | 50 150 Average Speed 150 | 100 159 Slowest Speed 200 | 160 200 Overloaded Moves . | . . Propulsion Burnouts . | . . Robots Hopped . | . . Potential Cave-ins . | . . Cave-ins Triggered . | . . Exploration Rate (%) 19 | 3 36 Regions Visited 1 Branch Regions . Pre-discovered Areas . | . . Known Exits Taken . | . . Unknown Exits Taken 1 | 1 . Scrap Searched . | . . Spaces Dug . | . . Terrain Destroyed . | . . Melee . | . . Projectile . | . . AOE . | . . Terrain Rammed . | . . Walls Destroyed . | . . Machines Disabled . | . . Actions | -11 -10 --------- Run | Yrd Mat Total 332 | 51 281 Wait 5 | . 5 Move 257 | 40 217 Hop . | . . Pick Up 21 | 5 16 Fast Attach 6 | 3 3 Attach 13 | 3 10 Detach . | . . Swap . | . . Drop 6 | . 6 Fire 24 | . 24 Melee . | . . Ram . | . . Kick . | . . Crush . | . . Escape Stasis . | . . Rewire . | . . Trap . | . . Miscellaneous . | . . Route ------- -11/Scrapyard -10/Materials (discovered 1 exit: [*Mat]) History --------- Turn | Location | Event 3 | -11/Scrapyard | Discovered new exit (range 16) 54 | -11/Scrapyard | Entered Materials 302 | -10/Materials | Discovered new exit (range 16) 312 | -10/Materials | Build established: Mutant 483 | -10/Materials | Core integrity fell below 50% 490 | -10/Materials | Core integrity fell below 20% 506 | -10/Materials | Destroyed by G-47 Trooper with Particle Gun Last Messages --------------- S-10 Pest destroyed. Power failure, Lgt. Ion Engine shutdown. Overheating: Core damaged (-40). Overheating: System interference. Spread Laser temporarily disabled. K-01 Serf collects debris. Dropped Spread Laser. Lgt. Ion Engine destroyed. Overheating: Energy bleed (-2). K-01 Serf collects debris. Overheating: Broken Lgt. Treads damaged (-6). K-01 Serf collects debris. Critical hit (Burn: +37). Overheating: Hvy. Assault Rifle damaged (-81). Overheating: Seismic Detector damaged (-3). K-01 Serf collects debris. Overheating: Sml. Storage Unit damaged (-38). Broken Lgt. Treads destroyed. K-01 Serf destroyed. K-01 Serf collects debris. Map ----- +----------------------------------------------------+ | ???????????????#########????????# " """ # | | ???#######?????# ########## "" """ # | | #### ####### ^ # "" """ # | | ! # """ """ # | | = + "" """ # | | = % # """ # | | #### ###+### # """ # | | ##?# ## ## ######## # """ # | | #?# # #####+####??????# # " # | | #?#[[==[[# ## #??????# # # | | #?# [== [# ## """ #??????# ############ | | [#?######## ## """ #??????# #???#####??? | | #????????# ## """ #??????# #???# #??? | | ##????????# ## #??#####+##### #??? | | ??????????###### #??# # #??? | | ???????????????# #??# + #??? | | ???????????????# #??# # #??? | | ???????????????# "T" #??# # #??? | | ???????????????# """ #??########### #??? | | ???????????????# ##########???# #??? | | ???????????????#######+# #???# #??? | | ?????????????????????# # #???# #??? | | ?????????????????????# # o #???# #??? | | ?????????????????????# # #???# #??? | | ?????????????????????# + #???# #??? | | ?????????????????????# # @ #???# #??? | | ?????????????????????# # [=! #???? #??? | | ?????????????????????# # g%= #???? #??? | | ?????????????????????# # *k*k #???? #??? | | ?????????????????????# #####/####???? #??? | | ?????????????????????# ?? %[ ?????? ???? | | ????????????????????? ??????????? | | ?????????????????????# """ """ ????????? | | ?????????????????????# """ """ ??????? | | ?????????????????????# """ """ ????? | | ???????????????????? #??? | | ??????????????????? ? #??? | | ?????????????????? ? ????? ????? | | ?????????????????#?##?##???T#### ??????????? | | ???????????????????????????#???????????????? | | ???????????????????????????????????????????? | | ???????????????????????????????????????????? | | ???????????????????????????????????????????? | | ???????????????????????????????????????????? | | ???????????????????????????????????????????? | | ???????????????????????????????????????????? | | ???????????????????????????????????????????? | | ???????????????????????????????????????????? | | ???????????????????????????????????????????? | | ???????????????????????????????????????????? | +----------------------------------------------------+ Best States ------------- Heat Dissipation 25 Energy Generation 10 Energy Capacity 125 Matter Stores 277 Matter Capacity 300 Sight Range 16 Terrain Scan Density 10 Evasion (%) 50 Recoil Reduction 2 Item Schematics ----------------- None Robot Schematics ------------------ None Fabricated ------------ Nothing Repaired ---------- Nothing Studied --------- None Alien Tech Used ----------------- None Achievements -------------- DATA ERROR: Steam Global Achievement% Well Done Challenges ------------ None Game ------ Seed BarrageSuspensionNukerbomber Manual? 0 Play Time 00:10:10 Cumulative 1.6 hours Start 2025.11.30 @ 17:06:14 End 2025.11.30 @ 17:16:07 Sessions 1 Manual Loads 0 Difficulty Rogue Special Mode None Game No. 8 Rogue 8 Adventurer 0 Explorer 0 Win Type - Total 0 Types 0/0/0/0/0/0/0/0/0/0 Lore% 1 Gallery% 4 Achievement% 3 Wizard Run 0 Options --------- Layout 1 ASCII 0 Keyboard 0 Movement Mouse Keybinds 0 Fullscreen 2 Font 48/Proggy Map View 50x35 Zoom Use 0% Tactical HUD 0 Map Filters NONE Filters NONE Steam 1 RUN: ebd27f0b-b84a-4060-9438-e1d96750223b